bitfinex/quotes_SOLUSD_20241008
["timestamp","ask_amount","ask_price","bid_price","bid_amount"]
[1728398878022,6.9521,143.84,143.79,6.9545]
[1728398878628,8.63104973,143.83,143.78,24.342]
[1728398878852,6.9522,143.84,143.79,1.39061325]
[1728398879022,6.9522,143.84,143.79,8.34511325]
[1728398879224,6.952,143.85,143.79,6.9545]
[1728398879437,6.952,143.85,143.78,17.387]
[1728398879939,8.63004973,143.85,143.79,6.9545]
[1728398880137,6.9516,143.85,143.79,6.9545]
[1728398880339,6.9512,143.86,143.81,6.9535]
[1728398880930,1.67844973,143.88,143.8,17.3847]
[1728398881226,6.2065,143.89,143.86,6.951]
[1728398881419,6.2065,143.89,143.86,1.39006219]
[1728398881620,13.1562,143.89,143.84,6.952]
[1728398881830,6.2065,143.89,143.85,1.39009831]
[1728398882036,13.1564,143.89,143.85,1.39009831]
[1728398882450,13.1564,143.89,143.84,6.952]
[1728398882618,1.67844973,143.88,143.83,15.612]
[1728398882816,2.53351073,143.9,143.86,6.9511]
[1728398883049,2.53351073,143.9,143.86,8.3411377]
[1728398883628,2.53351073,143.9,143.86,1.3900377]
[1728398884219,2.53351073,143.9,143.86,18.7672377]
[1728398884652,0.855061,143.9,143.86,18.7672377]
[1728398884825,7.804361,143.9,143.86,18.7672377]
[1728398885160,7.804361,143.9,143.86,17.3772]
[1728398885853,32.40513373,143.89,143.84,6.952]
[1728398886026,25.45533373,143.89,143.84,21.39009821]
[1728398886228,6.9507,143.87,143.84,20.0]
[1728398886561,6.9512,143.86,143.83,20.0]
[1728398886852,8.63034973,143.85,143.8,24.3382]
[1728398887053,6.5664,143.88,143.77,42.57433433]
[1728398887054,6.9528,143.83,143.78,6.9547]
[1728398887428,1.67844973,143.85,143.79,18.77651923]
[1728398887647,30.728084,143.86,143.83,6.9522]
[1728398887648,23.776884,143.86,143.83,6.9522]
[1728398887955,23.776884,143.86,143.81,17.3835]
[1728398888161,23.776884,143.86,143.82,8.34339449]
[1728398888658,1.67844973,143.85,143.81,24.337]
[1728398888953,23.9387,143.91,143.83,17.3811]
[1728398889129,23.776884,143.88,143.84,8.34218538]
[1728398889331,8.62944973,143.87,143.82,20.0]
[1728398889537,6.9512,143.86,143.82,26.953]
[1728398889748,23.776884,143.89,143.83,1.39032083]
[1728398889939,23.776884,143.87,143.83,8.34262083]
[1728398890346,23.776884,143.85,143.79,17.3857]
[1728398890545,23.776884,143.87,143.8,6.954]
[1728398890546,8.63064973,143.84,143.8,6.954]
[1728398890740,8.63104973,143.83,143.79,17.3857]
[1728398890938,6.9526,143.83,143.79,24.3402]
[1728398891233,1.67844973,143.82,143.76,34.0802]
[1728398891439,6.9536,143.81,143.76,24.3454]
[1728398891633,1.67844973,143.83,143.8,6.954]
[1728398891828,1.67844973,143.83,143.79,24.3407]
[1728398892038,1.67844973,143.83,143.76,17.3892]
[1728398892328,6.9536,143.81,143.77,6.9554]
[1728398892544,1.67844973,143.81,143.77,6.9554]
[1728398893055,23.776884,143.82,143.78,1.39083512]
[1728398893351,23.776884,143.82,143.79,6.9545]
[1728398893735,23.776884,143.82,143.78,8.34563512]
[1728398894568,6.9541,143.8,143.76,24.345]
[1728398894854,1.67844973,143.81,143.77,8.34626341]
[1728398895057,13.701,143.84,143.78,17.3871]
[1728398895237,23.776884,143.83,143.79,1.3906607]
[1728398895432,23.776884,143.83,143.8,6.9536]
[1728398895841,25.45533373,143.83,143.8,6.9536]
[1728398896251,8.42694973,143.84,143.8,6.9536]
[1728398896569,15.37914973,143.84,143.79,1.3906607]
[1728398896754,23.776884,143.83,143.78,17.3871]
[1728398897075,23.776884,143.83,143.79,6.9545]
[1728398897251,23.776884,143.83,143.79,8.34521525]
[1728398897444,23.776884,143.83,143.8,6.954]
[1728398898266,8.42694973,143.84,143.81,6.9534]
[1728398898468,6.7485,143.84,143.8,6.9539]
[1728398898647,8.63144973,143.83,143.78,20.0]
[1728398898845,6.7485,143.84,143.8,6.954]
[1728398898846,15.37914973,143.84,143.8,6.954]
[1728398899257,25.45533373,143.85,143.81,8.34382085]
[1728398899449,23.8362,143.88,143.81,8.34382085]
[1728398899450,6.4602,143.88,143.85,6.9515]
[1728398899672,1.67844973,143.87,143.84,24.3316]
[1728398900768,6.4602,143.88,143.85,6.9516]
[1728398900976,15.08884973,143.88,143.84,24.3317]
[1728398901566,23.776884,143.87,143.84,17.3797]
[1728398901864,23.776884,143.87,143.84,24.3317]
[1728398904771,8.63104973,143.83,143.79,6.9544]
[1728398904969,1.67844973,143.82,143.79,6.9544]
[1728398905158,1.67844973,143.82,143.78,17.3867]
[1728398905462,8.63164973,143.82,143.78,24.3416]
[1728398905666,1.67844973,143.81,143.78,17.3867]
[1728398905870,23.776884,143.82,143.79,6.9545]
[1728398906081,1.67844973,143.85,143.83,6.9526]
[1728398906245,1.67844973,143.86,143.83,6.9526]
[1728398906570,1.67844973,143.86,143.84,17.3801]
[1728398906873,1.67844973,143.88,143.84,24.3321]
[1728398907068,8.62874973,143.88,143.84,24.3321]
[1728398907248,1.67844973,143.88,143.84,24.3321]
[1728398908647,2.53351073,143.9,143.87,6.9506]
[1728398908853,2.53351073,143.9,143.86,24.3286]
[1728398910072,2.53351073,143.9,143.83,17.3806]
[1728398910267,1.67844973,143.89,143.83,17.3806]
[1728398910474,6.9507,143.87,143.83,24.3332]
[1728398910669,1.67844973,143.86,143.83,24.3332]
[1728398910854,0.855061,143.9,143.84,8.34244555]
[1728398910855,6.9497,143.89,143.84,8.34244555]
[1728398911048,1.67844973,143.88,143.8,6.19822424]
[1728398911252,7.804361,143.9,143.86,6.9508]
[1728398911562,25.45533373,143.89,143.86,6.9508]
[1728398911872,1.67844973,143.89,143.86,6.9508]
[1728398912167,23.776884,143.88,143.85,17.3787]
[1728398912367,1.67844973,143.87,143.82,17.3821]
[1728398912564,1.67844973,143.87,143.83,6.9525]
[1728398912565,8.62914973,143.87,143.83,6.9525]
[1728398912869,8.62914973,143.87,143.82,24.3349]
[1728398912870,30.728084,143.86,143.82,24.3349]
[1728398913047,1.67844973,143.85,143.81,6.9535]
[1728398913249,23.776884,143.85,143.83,6.9523]
[1728398913868,23.776884,143.85,143.82,6.9528]
[1728398914074,23.776884,143.85,143.83,6.9524]
[1728398914486,0.855061,143.9,143.79,34.7727]
[1728398914780,23.776884,143.86,143.83,17.3809]
[1728398914946,1.67844973,143.85,143.82,6.953]
[1728398915550,30.729084,143.84,143.8,17.3843]
[1728398915757,1.67844973,143.83,143.8,24.338]
[1728398915976,25.45533373,143.84,143.8,24.338]
[1728398916477,25.45533373,143.84,143.81,6.9535]
[1728398916861,25.45533373,143.85,143.82,24.3354]
[1728398917170,23.776884,143.85,143.82,24.3354]
[1728398917574,8.63064973,143.84,143.8,6.9537]
[1728398917773,1.67844973,143.84,143.8,6.9537]
[1728398917963,1.67844973,143.84,143.81,6.9535]
[1728398918983,23.776884,143.83,143.8,6.9539]
[1728398919691,23.776884,143.83,143.77,15.7751]
[1728398919692,23.776884,143.81,143.77,15.7751]
[1728398919854,1.67844973,143.8,143.78,3.88097686]
[1728398920056,1.67844973,143.8,143.76,17.3891]
[1728398920057,1.67844973,143.8,143.76,23.59866299]
[1728398920371,6.9556,143.77,143.73,24.3502]
[1728398920550,1.67844973,143.76,143.74,17.05304201]
[1728398920756,23.776884,143.77,143.75,6.9564]
[1728398921461,23.776884,143.79,143.75,17.3908]
[1728398921669,1.67844973,143.78,143.75,24.3471]
[1728398922566,1.67844973,143.78,143.75,17.3908]
[1728398922768,1.67844973,143.78,143.75,24.3472]
[1728398922957,23.776884,143.79,143.77,6.9554]
[1728398923580,1.67844973,143.8,143.77,6.9554]
[1728398923780,0.2,167.7,143.75,17.3908]
[1728398923781,1.67844973,143.84,143.79,35.80813433]
[1728398923983,0.855061,143.9,143.8,15.5158]
[1728398923984,1.67844973,143.89,143.8,15.5158]
[1728398924183,0.855061,143.9,143.88,6.9502]
[1728398924479,0.855061,143.9,143.87,17.3764]
[1728398924679,0.855061,143.9,143.88,6.95]
[1728398925382,0.855061,143.9,143.89,1.3897815]
[1728398925766,0.855061,143.9,143.88,6.95]
[1728398925967,0.855061,143.9,143.88,10.82448614]
[1728398926281,0.855061,143.9,143.89,1.38957785]
[1728398926476,0.855061,143.9,143.88,10.82448614]
[1728398926706,0.855061,143.9,143.84,6.952]
[1728398926880,0.855061,143.9,143.85,3.8727667]
[1728398927077,1.67844973,143.89,143.84,8.34226669]
[1728398927385,1.67844973,143.89,143.84,6.952]
[1728398927699,23.776884,143.88,143.84,6.952]
[1728398928191,23.776884,143.89,143.84,6.952]
[1728398928493,23.776884,143.87,143.84,6.952]
[1728398928703,1.67844973,143.86,143.82,17.3817]
[1728398928867,1.67844973,143.86,143.83,6.9526]
[1728398929067,23.776884,143.87,143.84,6.9521]
[1728398929327,1.67844973,143.89,143.84,6.9521]
[1728398929481,23.776884,143.88,143.84,6.9521]
[1728398929797,23.776884,143.88,143.82,24.3345]
[1728398929798,1.67844973,143.87,143.82,24.3345]
[1728398929994,23.776884,143.88,143.84,6.952]
[1728398930204,23.776884,143.86,143.83,6.9525]
[1728398930795,23.776884,143.87,143.82,17.3817]
[1728398930970,23.776884,143.85,143.82,24.3347]
[1728398931177,1.67844973,143.86,143.82,24.3347]
[1728398931390,1.67844973,143.87,143.83,8.34262393]
[1728398931571,1.67844973,143.87,143.82,18.77204791]
[1728398931772,1.67844973,143.87,143.83,6.9526]
[1728398932272,1.80393973,143.88,143.83,6.9526]
[1728398932479,25.58082373,143.88,143.83,6.9526]
[1728398932674,32.53112373,143.88,143.83,6.9526]
[1728398932998,32.53112373,143.88,143.82,25.72512863]
[1728398933180,32.53112373,143.88,143.82,18.77212863]
[1728398933387,32.53112373,143.88,143.83,6.9524]
[1728398934493,1.67844973,143.88,143.84,17.3798]
[1728398934692,8.62824973,143.89,143.84,24.3315]
[1728398935706,23.776884,143.88,143.84,24.3315]
[1728398935881,1.67844973,143.87,143.84,24.3315]
[1728398936078,0.855061,143.9,143.85,1.39028681]
[1728398936281,0.855061,143.9,143.87,6.9506]
[1728398936692,0.855061,143.9,143.87,8.34059245]
[1728398936893,0.855061,143.9,143.87,6.9506]
[1728398937198,7.804361,143.9,143.86,17.3773]
[1728398937384,1.67844973,143.89,143.86,17.3773]
[1728398937697,1.67844973,143.89,143.86,24.3281]
[1728398938286,1.67844973,143.89,143.87,6.9506]
[1728398938494,1.67844973,143.89,143.86,24.3284]
[1728398938793,2.53351073,143.9,143.86,24.3284]
[1728398939180,2.53351073,143.9,143.87,6.9505]
[1728398939384,0.855061,143.9,143.86,24.3283]
[1728398939577,2.53351073,143.9,143.87,6.9505]
[1728398940808,0.855061,143.9,143.87,6.9505]
[1728398941477,0.855061,143.9,143.89,6.9497]
[1728398941681,0.855061,143.9,143.88,24.3249]
[1728398942101,0.855061,143.9,143.87,6.9506]
[1728398942509,0.855061,143.9,143.88,6.9502]
[1728398942993,0.855061,143.9,143.89,6.9497]
[1728398944513,0.855061,143.9,143.89,26.9497]
[1728398944715,0.855061,143.9,143.89,28.33925437]
[1728398945012,0.855061,143.9,143.89,28.59023437]
[1728398945242,8.17204973,144.02,143.91,20.25098]
[1728398945511,15.11554973,144.02,143.91,29.30140668]
[1728398945684,6.9444,144.01,143.96,24.3115]
[1728398946293,6.944,144.01,143.97,6.9457]
[1728398946506,6.944,144.01,143.96,24.3115]
[1728398946920,6.4936,144.02,143.97,6.9458]
[1728398947088,6.4936,144.02,143.96,17.3653]
[1728398947417,1.67844973,144.01,143.99,6.9448]
[1728398947712,6.9431,144.03,143.98,6.9452]
[1728398947895,1.67844973,144.02,143.96,17.3653]
[1728398948300,0.12549,144.01,143.94,1.38911155]
[1728398948518,23.776884,143.99,143.96,6.9462]
[1728398948719,1.67844973,143.98,143.95,17.3664]
[1728398949022,1.67844973,143.98,143.94,1.38911806]
[1728398949023,23.776884,143.97,143.94,1.38919725]
[1728398949193,0.25098,144.01,143.95,6.9465]
[1728398949387,23.776884,143.99,143.95,6.9465]
[1728398949589,1.67844973,143.98,143.94,24.3146]
[1728398950098,1.67844973,143.98,143.94,17.3677]
[1728398950419,23.776884,143.99,143.95,8.33594628]
[1728398950588,23.776884,143.99,143.96,6.946]
[1728398950589,25.45533373,143.99,143.96,6.946]
[1728398952514,30.846674,144.01,143.96,6.946]
[1728398952814,8.62284973,144.0,143.96,6.946]
[1728398953022,30.722084,143.99,143.94,17.3677]
[1728398953209,1.67844973,143.98,143.94,17.3677]
[1728398953512,1.67844973,143.98,143.88,23.4085]
[1728398953513,23.776884,143.97,143.91,17.3712]
[1728398953814,23.776884,143.97,143.88,23.4085]
[1728398953815,23.776884,143.97,143.94,6.9471]
[1728398954603,6.9453,143.99,143.95,6.9468]
[1728398954819,23.776884,143.99,143.96,6.9463]
[1728398954991,1.49863437,144.09,144.07,6.9407]
[1728398955192,12.87903133,144.18,143.99,0.12549]
[1728398955193,6.5674,144.15,144.06,24.2946]
[1728398955495,6.5674,144.15,144.07,6.9407]
[1728398955694,6.5674,144.15,144.08,6.9405]
[1728398955695,6.9377,144.14,144.08,6.9405]
[1728398955912,6.9381,144.13,144.06,17.3533]
[1728398956300,6.5674,144.15,144.11,6.9391]
[1728398956492,6.5674,144.15,144.1,17.3483]
[1728398956908,6.5674,144.15,144.1,24.2878]
[1728398957220,6.5674,144.15,144.13,6.938]
[1728398957419,6.5674,144.15,144.1,24.2874]
[1728398958132,6.5674,144.15,144.1,17.3483]
[1728398958420,13.5046,144.15,144.1,24.2876]
[1728398958599,6.5674,144.15,144.1,24.2876]
[1728398958804,13.5046,144.15,144.1,17.3483]
[1728398959004,6.5674,144.15,144.1,17.3483]
[1728398959211,6.5674,144.15,144.1,24.2877]
[1728398959434,6.9382,144.13,144.06,17.3531]
[1728398959604,7.06319,144.14,144.08,6.9405]
[1728398960412,6.9383,144.13,144.07,6.941]
[1728398960794,23.902374,144.14,144.06,17.3531]
[1728398961024,6.9392,144.11,144.06,17.3531]
[1728398961203,6.9387,144.12,144.06,25.68248493]
[1728398961408,0.12549,144.12,144.06,17.3531]
[1728398961598,6.9393,144.11,144.06,17.3531]
[1728398961798,6.9393,144.11,144.06,24.2944]
[1728398963518,6.9405,144.09,144.04,6.9424]
[1728398963720,0.12549,144.12,144.02,17.3576]
[1728398964030,6.94,144.1,144.02,17.3576]
[1728398964229,6.94,144.1,144.05,6.9418]
[1728398964532,0.25098,144.13,144.02,17.3576]
[1728398964714,6.9396,144.1,144.05,6.9418]
[1728398965101,0.12549,144.11,143.99,34.7234]
[1728398965102,7.06469,144.11,144.06,6.9411]
[1728398965331,0.12549,144.13,144.04,17.3555]
[1728398965332,0.12549,144.12,144.04,17.3555]
[1728398965506,6.9401,144.09,144.04,24.2979]
[1728398965706,0.25098,144.13,143.99,34.7234]
[1728398965922,6.941,144.08,144.03,6.9429]
[1728398966425,7.06579,144.09,144.04,6.9424]
[1728398966622,7.06579,144.09,144.04,8.33075217]
[1728398966800,6.9388,144.12,144.07,6.9409]
[1728398967001,6.9383,144.13,144.08,6.9404]
[1728398967232,6.9387,144.12,144.07,24.2928]
[1728398967731,6.9387,144.12,144.08,6.9405]
[1728398967917,17.3413,144.17,144.09,6.94]
[1728398967918,6.9377,144.14,144.09,6.94]
[1728398968107,6.9382,144.13,144.08,6.9404]
[1728398968309,17.3413,144.17,144.09,6.9399]
[1728398968522,6.9377,144.14,144.09,6.9399]
[1728398969522,6.9377,144.14,144.1,6.9395]
[1728398969921,6.9377,144.14,144.09,24.2899]
[1728398970603,6.937,144.16,144.09,17.3499]
[1728398971006,6.937,144.16,144.11,6.939]
[1728398971425,17.3372,144.2,144.09,17.3499]
[1728398971607,17.3372,144.2,144.1,6.9393]
[1728398971805,13.5047,144.15,144.1,6.9393]
[1728398972218,6.5674,144.15,144.12,6.9386]
[1728398972407,6.5674,144.15,144.11,17.3471]
[1728398972617,6.5674,144.15,144.11,24.286]
[1728398972806,13.5047,144.15,144.11,24.286]
[1728398973308,17.3372,144.2,144.11,17.3471]
[1728398973309,0.12549,144.18,144.11,17.3471]
[1728398973509,0.12549,144.18,144.06,36.8847]
[1728398973745,17.46519,144.18,144.08,17.3506]
[1728398973919,17.46519,144.18,144.09,6.9399]
[1728398974420,6.9383,144.13,144.09,6.9399]
[1728398974620,6.9381,144.14,144.1,6.9396]
[1728398974944,6.9381,144.14,144.08,17.3506]
[1728398975234,6.9381,144.14,144.1,6.9395]
[1728398975408,6.9382,144.13,144.09,6.9399]
[1728398975726,6.9387,144.12,144.08,24.291]
[1728398976035,6.9375,144.15,144.1,6.9392]
[1728398976212,0.12549,144.14,144.1,6.9392]
[1728398976417,17.3397,144.18,144.05,34.7078]
[1728398976608,6.9362,144.18,144.14,6.9376]
[1728398976819,7.133561,144.19,144.13,6.938]
[1728398977013,6.9363,144.17,144.13,6.938]
[1728398977406,6.9359,144.18,144.13,8.32550429]
[1728398977734,6.9359,144.18,144.13,6.938]
[1728398978031,6.9359,144.18,144.14,6.9374]
[1728398978329,14.068861,144.19,144.15,6.9368]
[1728398978708,0.855061,144.19,144.16,6.9365]
[1728398978906,0.855061,144.19,144.14,17.3433]
[1728398979531,6.9359,144.18,144.14,24.2809]
[1728398979735,7.790461,144.19,144.15,6.9371]
[1728398981544,0.855061,144.19,144.17,6.9362]
[1728398981708,0.855061,144.19,144.16,18.72874221]
[1728398981709,0.855061,144.19,144.16,24.2779]
[1728398982132,0.855061,144.19,144.16,17.3414]
[1728398982341,6.9358,144.18,144.14,6.9375]
[1728398982510,7.790461,144.19,144.14,6.9375]
[1728398983038,7.790461,144.19,144.15,6.9369]
[1728398983334,0.855061,144.19,144.15,17.3427]
[1728398983642,7.790761,144.19,144.15,24.2798]
[1728398983933,0.12549,144.18,144.08,34.7008]
[1728398984130,17.46529,144.18,144.09,17.3492]
[1728398984340,0.12549,144.17,144.07,17.0905]
[1728398984516,0.12549,144.17,144.08,1.38779938]
[1728398984715,6.9373,144.15,144.11,6.9391]
[1728398984927,23.902374,144.18,144.11,6.9391]
[1728398984928,6.9368,144.16,144.11,6.9391]
[1728398985125,7.06129,144.18,144.14,6.9375]
[1728398985351,6.937,144.16,144.12,6.9386]
[1728398985508,24.027864,144.18,144.1,24.2876]
[1728398985509,6.9373,144.15,144.1,24.2876]
[1728398985933,6.9373,144.15,144.1,17.3484]
[1728398986308,6.9373,144.15,144.11,6.939]
[1728398986508,6.9373,144.15,144.1,24.2876]
[1728398987021,23.776884,144.18,144.07,17.0905]
[1728398987220,7.06209,144.17,144.13,6.938]
[1728398987532,7.06209,144.17,144.12,17.3463]
[1728398987533,7.06209,144.17,144.12,24.2848]
[1728398987836,7.06219,144.17,144.12,24.2845]
[1728398988025,7.06219,144.17,144.13,6.938]
[1728398988340,6.9368,144.16,144.12,24.2849]
[1728398988937,0.12549,144.17,144.12,17.3463]
[1728398989625,0.12549,144.17,144.09,17.3494]
[1728398989841,0.12549,144.15,144.09,24.2893]
[1728398990038,6.9383,144.13,144.09,24.2893]
[1728398990246,0.12549,144.15,144.09,17.3494]
[1728398990450,6.9378,144.14,144.1,6.9394]
[1728398990739,6.9387,144.12,144.08,6.9404]
[1728398991743,7.06369,144.13,144.09,6.94]
[1728398991922,13.8056,144.14,144.09,6.9399]
[1728398992438,6.8675,144.14,144.11,6.939]
[1728398992651,0.12549,144.15,144.12,17.3463]
[1728398992830,7.677461,144.19,144.12,17.3463]
[1728398994031,6.9361,144.18,144.14,6.9376]
[1728398994237,6.9361,144.18,144.12,17.3463]
[1728398994426,6.9363,144.17,144.13,6.938]
[1728398994619,6.9368,144.16,144.12,24.2845]
[1728398994826,7.677461,144.19,144.12,17.3463]
[1728398995147,6.9359,144.18,144.12,17.3463]
[1728398995325,6.9359,144.18,144.13,6.9379]
[1728398996037,7.677461,144.19,144.13,6.9379]
[1728398996348,6.9359,144.18,144.14,6.9376]
[1728398996547,14.612861,144.19,144.15,6.9371]
[1728398996720,14.612861,144.19,144.15,6.9372]
[1728398997643,0.855061,144.19,144.12,22.28258094]
[1728398997849,0.855061,144.19,144.18,6.9357]
[1728399000043,0.855061,144.19,144.17,10.78911025]
[1728399000248,0.855061,144.19,144.18,3.86070152]
[1728399000438,0.855061,144.19,144.18,3.86085572]
[1728399001034,0.855061,144.19,144.17,6.9358]
[1728399002130,0.855061,144.19,144.18,6.9357]
[1728399002732,0.855061,144.19,144.16,17.3415]
[1728399002943,0.855061,144.19,144.16,30.45582081]
[1728399003248,0.855061,144.19,144.16,24.2781]
[1728399003422,0.855061,144.19,144.14,6.17806498]
[1728399003628,0.855061,144.19,144.16,6.9366]
[1728399003924,0.855061,144.19,144.17,6.9359]
[1728399004337,0.855061,144.19,144.18,6.9357]
[1728399006236,0.855061,144.19,144.17,17.3404]
[1728399006546,0.855061,144.19,144.18,6.9357]
[1728399008763,0.855061,144.19,144.18,8.32272042]
[1728399008936,0.855061,144.19,144.18,6.9357]
[1728399011165,0.855061,144.19,144.17,17.3404]
[1728399011465,0.855061,144.19,144.16,6.9367]
[1728399012033,0.855061,144.19,144.17,6.9362]
[1728399012256,0.855061,144.19,144.16,24.2784]
[1728399012633,7.790761,144.19,144.15,6.937]
[1728399012839,0.855061,144.19,144.16,6.9366]
[1728399013050,0.855061,144.19,144.15,17.3426]
[1728399013267,0.855061,144.19,144.18,6.9357]
[1728399013553,0.855061,144.19,144.18,8.32266374]
[1728399013763,0.855061,144.19,144.18,6.9357]
[1728399014335,0.855061,144.19,144.18,8.32256184]
[1728399014639,0.855061,144.19,144.18,6.9357]
[1728399014854,0.855061,144.19,144.18,8.32253105]
[1728399015039,0.855061,144.19,144.18,8.32256627]
[1728399015234,0.855061,144.19,144.18,6.9357]
[1728399016030,0.855061,144.19,144.18,8.3225335]
[1728399017962,0.855061,144.19,144.18,8.32252732]
[1728399018143,0.855061,144.19,144.18,30.60510826]
[1728399018554,0.855061,144.19,144.18,50.73059826]
[1728399018748,0.855061,144.19,144.18,83.26051339]
[1728399018953,6.9301,144.3,144.24,17.3316]
[1728399019140,6.9308,144.29,144.25,6.9323]
[1728399019370,6.9306,144.29,144.24,24.264]
[1728399019546,6.7818,144.31,144.24,17.3316]
[1728399019752,6.93,144.3,144.26,6.9319]
[1728399019945,6.9308,144.29,144.25,6.9323]
[1728399020345,6.7818,144.31,144.24,17.3316]
[1728399020643,6.9301,144.3,144.25,6.932]
[1728399021161,6.9309,144.29,144.25,1.38620457]
[1728399021346,6.9311,144.28,144.24,17.3316]
[1728399021545,6.9317,144.27,144.22,6.9336]
[1728399021747,6.9321,144.26,144.22,6.9336]
[1728399021960,17.3266,144.29,144.19,8.75303113]
[1728399022268,6.9351,144.2,144.15,24.2795]
[1728399022464,6.9351,144.2,144.15,17.3424]
[1728399022767,6.9351,144.2,144.16,6.9366]
[1728399023366,0.12549,144.24,144.17,1.38715954]
[1728399023567,6.9354,144.19,144.14,6.9372]
[1728399023772,23.902374,144.27,144.13,16.4868]
[1728399023950,24.027864,144.25,144.14,1.38701051]
[1728399024546,6.9341,144.22,144.17,6.9361]
[1728399024743,24.027864,144.25,144.17,1.38701315]
[1728399024969,6.9605,144.28,144.2,6.9348]
[1728399024970,6.933,144.24,144.2,6.9348]
[1728399025147,6.933,144.24,144.2,8.32159887]
[1728399025578,6.9333,144.23,144.19,6.9352]
[1728399025871,0.12549,144.27,144.2,6.9344]
[1728399026780,0.12549,144.27,144.21,1.38674836]
[1728399027067,0.12549,144.27,144.2,17.3365]
[1728399027280,6.9325,144.25,144.2,17.3365]
[1728399027465,6.933,144.24,144.2,24.2712]
[1728399028052,0.12549,144.27,144.2,17.3365]
[1728399028258,6.9329,144.24,144.2,24.2712]
[1728399029787,6.9327,144.25,144.21,6.9343]
[1728399030078,6.9328,144.24,144.2,24.2711]
[1728399030262,17.45489,144.27,144.17,17.3399]
[1728399030456,17.45489,144.27,144.18,6.9356]
[1728399030457,6.9339,144.22,144.18,6.9356]
[1728399030777,6.9334,144.23,144.19,6.9352]
[1728399031393,6.9339,144.22,144.18,6.9354]
[1728399031674,0.12549,144.24,144.17,17.3399]
[1728399031976,6.9348,144.2,144.16,6.9364]
[1728399032273,6.9348,144.2,144.16,8.32356403]
[1728399032647,24.027864,144.24,144.16,1.38716403]
[1728399032842,24.027864,144.24,144.17,6.9361]
[1728399032843,6.9344,144.21,144.17,6.9361]
[1728399033077,6.9348,144.2,144.16,24.2782]
[1728399034061,6.9345,144.21,144.17,6.9362]
[1728399034410,24.027864,144.24,144.13,33.8312]
[1728399034411,6.9357,144.19,144.13,33.8312]
[1728399034563,6.937,144.16,144.12,6.9385]
[1728399034775,24.027864,144.2,144.09,16.947]
[1728399035075,6.9372,144.15,144.11,6.939]
[1728399035370,6.9354,144.19,144.15,6.9371]
[1728399035555,6.9351,144.2,144.15,8.32435068]
[1728399035957,6.9365,144.17,144.13,6.9378]
[1728399036168,6.9361,144.18,144.13,6.9378]
[1728399036558,6.9361,144.18,144.13,1.3874164]
[1728399036781,0.12549,144.2,144.14,6.9376]
[1728399036957,6.9349,144.2,144.15,8.32401179]
[1728399037157,13.4996,144.21,144.17,6.9361]
[1728399037384,6.9348,144.2,144.16,6.9366]
[1728399037955,6.5652,144.21,144.15,17.342]
[1728399038172,6.9354,144.19,144.15,17.342]
[1728399038382,6.9354,144.19,144.15,24.2791]
[1728399038560,6.9358,144.18,144.14,6.9376]
[1728399039158,0.12549,144.2,144.13,1.38738518]
[1728399039358,6.9361,144.18,144.14,6.9376]
[1728399039865,24.027864,144.2,144.12,17.3458]
[1728399040163,6.9391,144.11,144.07,6.941]
[1728399040385,6.9399,144.1,144.06,17.353]
[1728399040586,6.7168,144.12,144.01,16.7777]
[1728399040772,6.9411,144.07,144.03,17.3568]
[1728399040971,24.027864,144.11,144.0,17.361]
[1728399041283,6.9415,144.06,144.01,6.9438]
[1728399041984,6.9438,144.02,143.97,6.9458]
[1728399042171,7.06829,144.04,143.98,6.9451]
[1728399042368,7.06829,144.04,143.99,6.9445]
[1728399042369,6.9428,144.04,143.99,6.9445]
[1728399042570,6.9428,144.04,143.98,17.3626]